bitfinex/quotes_SOLUSD_20241126
["timestamp","ask_amount","ask_price","bid_price","bid_amount"]
[1732639771691,21.37112905,231.94,231.86,21.37112905]
[1732639771884,20.0,231.91,231.84,21.37112905]
[1732639772081,21.37112905,231.9,231.82,21.37112905]
[1732639772508,20.0,231.91,231.84,21.37112905]
[1732639772709,20.0,231.92,231.86,21.37112905]
[1732639772892,20.0,231.91,231.86,21.37112905]
[1732639773087,20.0,231.91,231.84,21.37112905]
[1732639773487,4.3127,231.87,231.8,21.37112905]
[1732639773714,4.3127,231.87,231.72,21.37112905]
[1732639773715,21.37112905,231.86,231.78,21.37112905]
[1732639773923,21.37112905,231.84,231.76,21.37112905]
[1732639774092,21.37112905,231.82,231.74,25.68622905]
[1732639774599,21.37112905,231.8,231.72,21.37112905]
[1732639774814,20.0,231.81,231.76,21.37112905]
[1732639775003,4.3127,231.87,231.8,21.37112905]
[1732639775306,20.0,231.88,231.84,21.37112905]
[1732639775517,20.0,231.86,231.82,21.37112905]
[1732639775809,20.0,231.86,231.78,21.37112905]
[1732639776018,25.68422905,231.85,231.76,21.37112905]
[1732639776396,25.68422905,231.85,231.74,23.776884]
[1732639776397,21.37112905,231.82,231.74,45.14801305]
[1732639776604,24.3131,231.85,231.78,21.37112905]
[1732639777114,21.37112905,231.83,231.76,21.37112905]
[1732639777317,21.37112905,231.84,231.77,21.37112905]
[1732639777722,21.37112905,231.82,231.75,4.3149]
[1732639777926,21.37112905,231.79,231.72,21.37112905]
[1732639778212,21.37112905,231.79,231.71,21.37112905]
[1732639778421,21.37112905,231.8,231.72,21.37112905]
[1732639778592,21.37112905,231.79,231.71,21.37112905]
[1732639779000,4.3144,231.78,231.71,21.37112905]
[1732639779220,21.37112905,231.77,231.68,21.37112905]
[1732639779513,21.37112905,231.75,231.66,21.37112905]
[1732639780194,21.37112905,231.75,231.68,21.37112905]
[1732639780400,4.3144,231.78,231.65,4.3168]
[1732639780401,24.3144,231.78,231.71,21.37112905]
[1732639780595,20.0,231.77,231.65,15.1089]
[1732639780811,20.0,231.78,231.71,21.37112905]
[1732639781297,24.3144,231.78,231.71,21.37112905]
[1732639781498,45.68552905,231.78,231.7,45.14801305]
[1732639782024,20.0,231.77,231.72,21.37112905]
[1732639782209,24.3147,231.77,231.7,21.37112905]
[1732639783323,24.3147,231.77,231.68,4.3162]
[1732639783324,20.0,231.75,231.66,4.3165]
[1732639783621,41.37112905,231.75,231.67,21.37112905]
[1732639783808,20.0,231.74,231.7,21.37112905]
[1732639784205,20.0,231.75,231.69,21.37112905]
[1732639784406,20.0,231.74,231.69,21.37112905]
[1732639784604,20.0,231.74,231.71,21.37112905]
[1732639785223,21.37112905,231.75,231.67,21.37112905]
[1732639786302,21.37112905,231.73,231.65,21.37112905]
[1732639786523,4.3151,231.74,231.67,21.37112905]
[1732639786734,20.0,231.75,231.69,21.37112905]
[1732639786896,11.2678,231.81,231.73,21.37112905]
[1732639786897,28.23892905,231.81,231.73,21.37112905]
[1732639787326,20.0,231.77,231.64,38.886484]
[1732639787619,20.0,231.77,231.64,28.093884]
[1732639787802,41.37112905,231.77,231.69,21.37112905]
[1732639788009,20.0,231.78,231.74,21.37112905]
[1732639788207,20.0,231.78,231.72,21.37112905]
[1732639788412,4.3146,231.77,231.72,21.37112905]
[1732639788922,25.68572905,231.77,231.66,4.3166]
[1732639789098,25.68572905,231.77,231.7,21.37112905]
[1732639789299,4.3146,231.77,231.7,21.37112905]
[1732639789494,4.3146,231.77,231.71,21.37112905]
[1732639789918,4.3146,231.77,231.7,21.37112905]
[1732639790107,21.37112905,231.76,231.68,21.37112905]
[1732639790312,4.3146,231.77,231.71,21.37112905]
[1732639790520,21.37112905,231.76,231.69,21.37112905]
[1732639790709,4.3146,231.77,231.7,21.37112905]
[1732639791028,25.68572905,231.77,231.69,21.37112905]
[1732639791322,4.3146,231.77,231.71,21.37112905]
[1732639791831,21.37112905,231.75,231.66,23.776884]
[1732639792011,21.37112905,231.75,231.66,45.14801305]
[1732639792212,21.37112905,231.75,231.68,21.37112905]
[1732639792421,21.37112905,231.73,231.6,6.0537]
[1732639792610,21.37112905,231.73,231.66,21.37112905]
[1732639793400,20.0,231.7,231.66,21.37112905]
[1732639793625,20.0,231.7,231.64,21.37112905]
[1732639794021,21.37112905,231.69,231.62,21.37112905]
[1732639794327,20.0,231.69,231.6,4.3177]
[1732639794533,21.37112905,231.69,231.61,21.37112905]
[1732639795027,20.0,231.66,231.59,21.37112905]
[1732639795229,4.3162,231.68,231.55,11.3124833]
[1732639795230,21.37112905,231.63,231.55,21.88731235]
[1732639796071,21.37112905,231.64,231.57,21.37112905]
[1732639796604,26.28732905,231.68,231.6,21.37112905]
[1732639796811,35.8083,231.7,231.65,21.37112905]
[1732639797131,10.5831,231.74,231.69,21.37112905]
[1732639797438,20.1232,231.76,231.62,0.25098]
[1732639797738,20.1232,231.76,231.71,21.37112905]
[1732639797940,20.1232,231.76,231.7,21.37112905]
[1732639798430,25.68552905,231.79,231.71,21.37112905]
[1732639798937,25.68552905,231.79,231.69,4.3161]
[1732639798938,20.0,231.74,231.69,21.37112905]
[1732639799305,20.0,231.74,231.71,21.37112905]
[1732639799539,20.0,231.76,231.71,21.37112905]
[1732639799718,4.3144,231.79,231.74,21.37112905]
[1732639800511,21.37112905,231.8,231.72,21.37112905]
[1732639800821,18.93948474,231.85,231.79,21.37112905]
[1732639800822,4.3134,231.84,231.79,21.37112905]
[1732639801434,21.37112905,231.81,231.73,21.37112905]
[1732639801934,21.37112905,231.79,231.7,21.37112905]
[1732639802139,25.68452905,231.84,231.77,21.37112905]
[1732639802315,4.3129,231.86,231.71,23.776884]
[1732639802515,19.9222,231.88,231.82,21.37112905]
[1732639802730,21.37112905,231.85,231.78,21.37112905]
[1732639802928,21.37112905,231.79,231.71,21.37112905]
[1732639803144,21.37112905,231.77,231.7,23.776884]
[1732639803429,21.37112905,231.79,231.72,21.37112905]
[1732639803630,20.0,231.78,231.7,23.776884]
[1732639803830,21.37112905,231.86,231.77,21.37112905]
[1732639804033,20.0,231.83,231.78,21.37112905]
[1732639804212,20.0,231.83,231.79,21.37112905]
[1732639804410,20.0,231.82,231.73,23.776884]
[1732639804725,20.0,231.83,231.79,21.37112905]
[1732639805737,20.0,231.83,231.8,21.37112905]
[1732639805944,20.0,231.83,231.75,23.776884]
[1732639806113,20.0,231.83,231.79,21.37112905]
[1732639806319,24.3133,231.84,231.79,21.37112905]
[1732639806522,20.0,231.85,231.81,21.37112905]
[1732639806730,24.3131,231.85,231.81,21.37112905]
[1732639807034,24.3131,231.85,231.79,21.37112905]
[1732639807239,21.37112905,231.91,231.83,21.37112905]
[1732639807429,4.312,231.91,231.84,21.37112905]
[1732639807628,7.55438782,231.92,231.88,21.37112905]
[1732639807816,21.37112905,231.89,231.82,21.37112905]
[1732639808016,21.37112905,231.86,231.78,21.37112905]
[1732639808212,0.6,231.91,231.75,23.776884]
[1732639808436,8.80402715,231.91,231.74,4.315]
[1732639808720,15.6927,231.9,231.73,4.3153]
[1732639809031,20.0,231.87,231.73,4.3153]
[1732639809220,21.37112905,231.83,231.75,21.37112905]
[1732639809636,4.3136,231.82,231.75,21.37112905]
[1732639809833,4.3136,231.82,231.76,21.37112905]
[1732639810225,4.3133,231.84,231.74,23.776884]
[1732639810446,20.0,231.85,231.83,21.37112905]
[1732639810747,4.3123,231.89,231.83,21.37112905]
[1732639810918,4.3123,231.89,231.81,21.37112905]
[1732639810919,25.68342905,231.89,231.81,21.37112905]
[1732639811120,21.37112905,231.85,231.77,21.37112905]
[1732639811320,25.68342905,231.89,231.8,21.37112905]
[1732639811542,21.37112905,231.88,231.78,21.37112905]
[1732639811730,15.0927,231.9,231.76,23.776884]
[1732639811933,20.0,231.87,231.76,23.776884]
[1732639812324,20.0,231.87,231.81,21.37112905]
[1732639812523,20.0,231.87,231.82,21.37112905]
[1732639812720,20.0,231.87,231.76,23.776884]
[1732639812721,20.0,231.83,231.77,21.37112905]
[1732639812921,20.0,231.81,231.75,21.37112905]
[1732639813124,20.0,231.81,231.74,21.37112905]
[1732639813842,24.314,231.8,231.75,21.37112905]
[1732639814248,24.314,231.8,231.72,10.9125]
[1732639814249,24.314,231.8,231.76,21.37112905]
[1732639814840,24.314,231.8,231.75,21.37112905]
[1732639815043,21.37112905,231.79,231.71,21.37112905]
[1732639815226,24.314,231.8,231.73,21.37112905]
[1732639815430,20.0,231.79,231.74,21.37112905]
[1732639816056,24.3143,231.79,231.74,21.37112905]
[1732639816940,24.3143,231.79,231.72,21.37112905]
[1732639817141,21.37112905,231.78,231.7,21.37112905]
[1732639817350,21.37112905,231.74,231.64,21.37112905]
[1732639817653,21.37112905,231.66,231.58,21.37112905]
[1732639817826,21.37112905,231.64,231.56,21.37112905]
[1732639818222,21.37112905,231.62,231.55,0.5161833]
[1732639819130,41.37112905,231.59,231.55,0.5161833]
[1732639819635,20.0,231.59,231.57,21.37112905]
[1732639819935,20.0,231.58,231.55,0.5161833]
[1732639820352,24.3182,231.58,231.55,0.5161833]
[1732639820526,4.3182,231.58,231.55,0.5161833]
[1732639821137,21.37112905,231.59,231.55,0.5161833]
[1732639821138,24.318,231.59,231.55,0.5161833]
[1732639821452,20.0,231.58,231.55,0.5161833]
[1732639822757,20.0,231.58,231.56,21.37112905]
[1732639823049,21.37112905,231.58,231.55,0.5161833]
[1732639823844,20.0,231.59,231.55,0.5161833]
[1732639824036,20.0,231.58,231.55,0.5161833]
[1732639824548,24.3182,231.58,231.55,0.5161833]
[1732639825056,41.37112905,231.56,231.55,0.5161833]
[1732639825730,20.0,231.56,231.55,0.5161833]
[1732639827857,40.9552,231.56,231.55,0.5161833]
[1732639828037,62.32632905,231.56,231.55,0.5161833]
[1732639831358,40.9552,231.56,231.55,0.5161833]
[1732639832157,62.32632905,231.56,231.55,0.5161833]
[1732639834971,24.3185,231.56,231.55,0.5161833]
[1732639835171,4.3179,231.59,231.55,0.5161833]
[1732639835479,4.3177,231.61,231.57,21.37112905]
[1732639835983,6.9495,231.69,231.58,21.37112905]
[1732639835984,4.317,231.64,231.58,21.37112905]
[1732639836156,25.68812905,231.64,231.57,21.37112905]
[1732639836477,25.68732905,231.68,231.61,21.37112905]
[1732639836654,4.3162,231.68,231.63,21.37112905]
[1732639836852,14.42007833,231.71,231.65,21.37112905]
[1732639837074,18.73587833,231.71,231.65,21.37112905]
[1732639837257,18.73587833,231.71,231.56,4.3185]
[1732639837258,40.10700738,231.71,231.63,21.37112905]
[1732639837465,40.10700738,231.71,231.57,23.776884]
[1732639837659,40.10700738,231.71,231.63,21.37112905]
[1732639837973,18.73587833,231.71,231.64,21.37112905]
[1732639838176,20.0,231.68,231.62,21.37112905]
[1732639838759,24.3164,231.68,231.62,21.37112905]
[1732639839364,20.0,231.66,231.61,21.37112905]
[1732639839557,21.37112905,231.66,231.58,21.37112905]
[1732639839957,20.0,231.63,231.6,21.37112905]
[1732639840785,20.0,231.63,231.59,21.37112905]
[1732639840956,20.0,231.63,231.6,21.37112905]
[1732639841155,32.16182905,231.68,231.6,21.37112905]
[1732639841156,20.0,231.66,231.6,21.37112905]
[1732639841362,20.0,231.65,231.6,21.37112905]
[1732639841758,20.0,231.64,231.6,21.37112905]
[1732639842258,20.0,231.64,231.59,21.37112905]
[1732639842454,41.37112905,231.63,231.55,21.88731235]
[1732639842676,4.3174,231.62,231.55,21.88731235]
[1732639842853,24.3174,231.62,231.55,21.88731235]
[1732639843180,20.0,231.56,231.55,0.5161833]
[1732639843556,25.68852905,231.62,231.55,0.5161833]
[1732639843761,20.0,231.59,231.55,0.5161833]
[1732639843981,4.3174,231.62,231.55,0.5161833]
[1732639844282,24.3174,231.62,231.55,21.88731235]
[1732639844475,20.0,231.6,231.56,21.37112905]
[1732639845165,4.3176,231.61,231.56,21.37112905]
[1732639845364,4.3176,231.61,231.55,0.5161833]
[1732639845365,24.3176,231.61,231.55,0.5161833]
[1732639845968,20.0,231.56,231.55,0.5161833]
[1732639846173,41.37112905,231.56,231.55,0.5161833]
[1732639847079,45.68962905,231.56,231.55,0.5161833]
[1732639852774,45.68962905,231.56,231.55,8.33e-05]
[1732639852982,25.0,231.54,231.38,21.37112905]
[1732639853183,21.37112905,231.47,231.38,21.37112905]
[1732639853493,20.0,231.36,231.32,21.88731235]
[1732639854768,20.0,231.38,231.34,21.37112905]
[1732639854988,20.0,231.39,231.35,21.37112905]
[1732639855291,20.0,231.38,231.34,21.37112905]
[1732639855988,25.69162905,231.45,231.37,21.37112905]
[1732639856302,4.3205,231.45,231.38,21.37112905]
[1732639856590,21.37112905,231.43,231.35,21.37112905]
[1732639856797,21.37112905,231.42,231.34,21.37112905]
[1732639857164,20.0,231.38,231.33,45.14801305]
[1732639858597,20.0,231.35,231.32,0.5161833]
[1732639859394,20.0,231.36,231.32,0.5161833]
[1732639859598,45.69292905,231.38,231.32,0.5161833]
[1732639859895,20.0,231.36,231.32,0.5161833]
[1732639860399,4.3211,231.42,231.35,21.37112905]
[1732639860696,4.3211,231.42,231.36,21.37112905]
[1732639860993,4.3209,231.44,231.4,21.37112905]
[1732639861372,21.37112905,231.45,231.38,21.37112905]
[1732639861794,21.37112905,231.44,231.36,21.37112905]
[1732639861974,21.37112905,231.44,231.37,21.37112905]
[1732639862378,20.0,231.41,231.37,21.37112905]
[1732639862684,20.0,231.41,231.38,21.37112905]
[1732639862887,20.0,231.44,231.4,21.37112905]
[1732639863078,24.3208,231.44,231.38,21.37112905]
[1732639863280,20.0,231.43,231.38,21.37112905]
[1732639863704,4.3208,231.44,231.38,21.37112905]
[1732639863877,25.69112905,231.48,231.4,21.37112905]
[1732639864079,4.32,231.48,231.42,21.37112905]
[1732639864397,4.32,231.48,231.43,21.37112905]
[1732639864597,4.32,231.48,231.42,21.37112905]
[1732639864975,4.32,231.48,231.43,21.37112905]
[1732639865296,21.37112905,231.48,231.41,21.37112905]
[1732639865691,22.09395681,231.55,231.47,21.37112905]
[1732639865692,6.42465681,231.55,231.47,21.37112905]
[1732639865901,5.12197355,231.59,231.48,21.37112905]
[1732639866195,4.3178,231.6,231.57,21.37112905]
[1732639866396,4.3178,231.6,231.58,21.37112905]
[1732639866606,4.317,231.64,231.57,21.37112905]
[1732639866796,4.3168,231.66,231.61,21.37112905]
[1732639867311,0.6,231.7,231.51,23.776884]
[1732639867312,0.98494572,231.65,231.63,21.37112905]
[1732639867881,0.98494572,231.65,231.6,21.37112905]
[1732639868095,0.98494572,231.65,231.64,21.37112905]
[1732639868293,0.98494572,231.65,231.62,21.37112905]
[1732639868693,0.98494572,231.65,231.63,21.37112905]
[1732639869783,0.98494572,231.65,231.64,21.37112905]
[1732639870087,0.98494572,231.65,231.62,21.37112905]
[1732639870502,5.30184572,231.65,231.62,21.37112905]
[1732639871010,24.3166,231.67,231.63,21.37112905]
[1732639871182,4.3166,231.67,231.62,21.37112905]
[1732639871384,24.3166,231.67,231.63,21.37112905]
[1732639872100,20.0,231.65,231.6,21.37112905]
[1732639872284,20.0,231.64,231.6,21.37112905]
[1732639872485,20.0,231.64,231.61,21.37112905]
[1732639872878,20.0,231.64,231.59,21.37112905]
[1732639873104,4.3172,231.63,231.59,21.37112905]
[1732639873403,4.3172,231.63,231.57,21.37112905]
[1732639873404,24.3172,231.63,231.57,21.37112905]
[1732639873700,24.3172,231.63,231.6,21.37112905]
[1732639874088,20.0,231.66,231.61,21.37112905]
[1732639874296,20.0,231.67,231.62,21.37112905]
[1732639874609,20.0,231.65,231.62,21.37112905]
[1732639875111,4.317,231.64,231.62,21.37112905]
[1732639875412,25.68812905,231.64,231.56,21.37112905]
[1732639875590,20.0,231.61,231.54,21.37112905]
[1732639875904,20.0,231.59,231.54,21.37112905]
[1732639876296,20.0,231.55,231.52,21.37112905]
[1732639876779,21.37112905,231.62,231.54,21.37112905]
[1732639876986,0.6,231.63,231.54,21.37112905]
[1732639876987,24.3177,231.6,231.54,21.37112905]
[1732639877895,20.0,231.58,231.54,21.37112905]
[1732639878096,24.3182,231.58,231.54,21.37112905]
[1732639878499,24.3182,231.58,231.52,21.37112905]
[1732639878909,24.3182,231.58,231.5,21.37112905]
[1732639878910,20.0,231.56,231.5,21.37112905]
[1732639879099,21.37112905,231.57,231.5,21.37112905]
[1732639880191,4.3185,231.56,231.5,21.37112905]
[1732639880703,21.37112905,231.55,231.48,21.37112905]
[1732639880913,21.37112905,231.53,231.44,27.61542905]
[1732639881085,15.1148,231.56,231.42,21.37112905]
[1732639881086,20.0,231.5,231.42,21.37112905]
[1732639881284,20.0,231.48,231.42,21.37112905]
[1732639881505,20.0,231.48,231.38,10.5992]
[1732639881506,20.0,231.46,231.4,21.37112905]
[1732639882289,25.69162905,231.45,231.38,21.37112905]
[1732639882487,20.0,231.44,231.42,21.37112905]
[1732639882689,4.3196,231.5,231.43,21.37112905]
[1732639882890,20.0,231.49,231.46,21.37112905]
[1732639883113,20.0,231.49,231.44,21.37112905]
[1732639883293,20.0,231.47,231.42,21.37112905]
[1732639883488,20.0,231.45,231.4,21.37112905]
[1732639883689,20.0,231.45,231.34,15.576]
[1732639883690,20.0,231.45,231.39,21.37112905]
[1732639884413,20.0,231.45,231.41,21.37112905]
[1732639884600,4.3204,231.46,231.41,21.37112905]
[1732639884916,20.0,231.45,231.39,21.37112905]
[1732639885216,20.0,231.45,231.41,21.37112905]
[1732639885708,24.3207,231.45,231.41,21.37112905]
[1732639885926,4.3207,231.45,231.41,21.37112905]
[1732639886215,20.0,231.42,231.35,21.37112905]
[1732639886390,21.37112905,231.39,231.32,0.5161833]
[1732639886591,20.0,231.36,231.32,0.5161833]
[1732639887710,4.3224,231.35,231.32,0.5161833]
[1732639888305,24.3224,231.35,231.32,0.5161833]
[1732639888909,4.322,231.38,231.32,21.88731235]
[1732639889089,24.322,231.38,231.33,21.37112905]
[1732639889431,20.0,231.37,231.33,21.37112905]
[1732639889792,24.322,231.38,231.33,21.37112905]
[1732639890395,20.0,231.37,231.32,21.88731235]
[1732639890720,20.0,231.37,231.33,21.37112905]
[1732639890902,24.3221,231.37,231.33,21.37112905]
[1732639891101,4.3221,231.37,231.32,21.88731235]
[1732639891307,20.0,231.34,231.32,0.5161833]
[1732639891497,24.3221,231.37,231.32,21.88731235]
[1732639891696,4.3215,231.4,231.36,21.37112905]
[1732639891897,43.4816,231.48,231.32,4.8390833]
[1732639891898,21.8809,231.48,231.32,4.8390833]
[1732639892118,7.52442456,231.47,231.32,4.8390833]
[1732639892302,4.3202,231.47,231.32,4.8390833]
[1732639892505,4.3202,231.47,231.33,23.776884]
[1732639893016,21.37112905,231.46,231.38,21.37112905]
[1732639893515,20.0,231.43,231.38,21.37112905]
[1732639893697,4.32,231.48,231.42,21.37112905]
[1732639893903,21.37112905,231.44,231.37,21.37112905]
[1732639895002,4.3209,231.43,231.37,21.37112905]
[1732639895323,4.3209,231.43,231.39,21.37112905]
[1732639895793,24.3209,231.43,231.4,21.37112905]
[1732639896194,24.3209,231.43,231.39,21.37112905]
[1732639896609,20.0,231.44,231.4,21.37112905]
[1732639896813,20.0,231.46,231.41,21.37112905]
[1732639897017,4.3205,231.45,231.4,21.37112905]
[1732639897224,20.0,231.44,231.4,21.37112905]
[1732639897398,20.0,231.44,231.38,21.37112905]
[1732639897830,20.0,231.44,231.4,21.37112905]
[1732639898417,24.3209,231.43,231.39,21.37112905]
[1732639899125,24.3209,231.43,231.38,21.37112905]
[1732639899901,24.3209,231.43,231.39,21.37112905]
[1732639900123,24.3209,231.43,231.32,0.5161833]
[1732639900124,20.0,231.41,231.34,21.37112905]
[1732639900321,37.77257749,231.43,231.35,13.45167749]
[1732639900703,24.3209,231.43,231.36,13.45167749]
[1732639900897,20.0,231.41,231.36,13.45167749]
[1732639901299,20.0,231.4,231.36,13.45167749]
[1732639901628,4.3216,231.4,231.36,13.45167749]
[1732639901819,24.3216,231.4,231.37,13.45167749]
[1732639902023,24.3216,231.4,231.34,13.45167749]
[1732639902207,20.0,231.39,231.34,13.45167749]
[1732639902407,20.0,231.37,231.32,0.5161833]
[1732639902621,20.0,231.36,231.32,0.5161833]
[1732639903424,24.3224,231.36,231.33,13.45167749]
[1732639903602,20.0,231.39,231.35,13.45167749]
[1732639904025,13.45167749,231.45,231.38,13.45167749]
[1732639904201,20.0,231.42,231.38,13.45167749]
[1732639904402,20.0,231.41,231.37,13.45167749]
[1732639904832,20.0,231.41,231.36,13.45167749]
[1732639905119,20.0,231.4,231.36,13.45167749]
[1732639905515,24.3215,231.4,231.36,13.45167749]
[1732639906120,20.0,231.39,231.35,13.45167749]
[1732639906316,20.0,231.37,231.32,22.04334514]
[1732639906628,20.0,231.37,231.33,21.52716184]
[1732639907222,20.0,231.38,231.33,21.52716184]
[1732639907430,4.322,231.37,231.33,21.52716184]
[1732639908006,4.322,231.37,231.34,21.52716184]
[1732639908207,20.0,231.36,231.32,0.5161833]
[1732639908510,25.84916184,231.37,231.32,0.5161833]
[1732639908719,20.0,231.34,231.32,0.5161833]
[1732639908911,20.0,231.34,231.32,22.04334514]
[1732639909436,20.0,231.35,231.32,22.04334514]
[1732639909608,4.3226,231.34,231.32,22.04334514]
[1732639910531,4.3215,231.4,231.33,21.52716184]
[1732639910720,20.0,231.38,231.34,21.52716184]
[1732639911026,20.0,231.38,231.33,21.52716184]
[1732639911533,4.322,231.37,231.34,21.52716184]
[1732639912613,4.3215,231.4,231.33,21.52716184]
[1732639912816,4.3215,231.4,231.35,21.52716184]
[1732639913022,20.0,231.39,231.35,21.52716184]
[1732639913324,20.0,231.38,231.33,21.52716184]
[1732639913511,20.0,231.38,231.32,22.04334514]
[1732639913713,41.52716184,231.37,231.32,0.5161833]
[1732639914219,20.0,231.35,231.33,21.52716184]
[1732639914733,4.3226,231.34,231.32,0.5161833]
[1732639915322,24.3226,231.34,231.32,0.5161833]
[1732639916220,20.0,231.36,231.32,0.5161833]
[1732639916416,20.0,231.35,231.32,0.5161833]
[1732639917034,20.0,231.35,231.32,22.04334514]
[1732639917207,4.3226,231.34,231.32,0.5161833]
[1732639917409,20.0,231.35,231.32,22.04334514]
[1732639917718,24.3224,231.35,231.32,22.04334514]
[1732639917920,24.3224,231.35,231.32,0.5161833]
[1732639920235,24.3224,231.35,231.32,22.04334514]
[1732639920417,24.3224,231.35,231.32,0.5161833]
[1732639921710,10.8032,231.42,231.34,21.52716184]
[1732639921909,7.53749829,231.41,231.36,21.52716184]
[1732639922108,7.53749829,231.41,231.32,4.8390833]
[1732639922109,4.3213,231.41,231.37,21.52716184]
[1732639923227,4.3211,231.42,231.36,21.52716184]
[1732639923429,25.84826184,231.42,231.34,21.52716184]
[1732639923660,3.21784672,231.41,231.34,21.52716184]
[1732639923940,20.0,231.39,231.35,21.52716184]
[1732639924121,20.0,231.4,231.35,21.52716184]
[1732639924532,24.3217,231.39,231.34,21.52716184]
[1732639924737,4.3217,231.39,231.34,21.52716184]
[1732639925032,20.0,231.38,231.34,21.52716184]
[1732639925229,41.52716184,231.38,231.32,0.5161833]
[1732639925432,20.0,231.33,231.32,0.5161833]
[1732639925815,41.52716184,231.33,231.32,0.5161833]
[1732639926020,44.75365208,231.33,231.32,0.5161833]
[1732639926528,49.07645208,231.33,231.32,0.5161833]
[1732639926735,54.24205029,231.33,231.32,8.33e-05]
[1732639927747,20.6,231.32,231.19,21.52716184]
[1732639927925,21.52716184,231.27,231.19,21.52716184]
[1732639928120,20.0,231.24,231.19,21.52716184]
[1732639928325,20.0,231.24,231.19,13.47105841]
[1732639928526,24.3245,231.24,231.19,13.47105841]
[1732639929147,4.3245,231.24,231.18,13.47105841]
[1732639929331,20.0,231.21,231.12,20.307]
[1732639929652,13.47105841,231.19,231.12,13.47105841]
[1732639929827,13.47105841,231.18,231.11,13.47105841]
[1732639930150,13.47105841,231.15,231.09,0.5161833]
[1732639930648,20.0,231.1,231.09,0.5161833]
[1732639931021,7.57828528,231.16,231.09,18.31444171]
[1732639931236,7.57828528,231.16,231.13,13.47105841]
[1732639931457,7.57828528,231.16,231.09,0.5161833]
[1732639931651,7.57828528,231.16,231.11,13.47105841]
[1732639931945,7.57828528,231.16,231.15,13.47105841]
[1732639932445,7.57828528,231.16,231.15,21.55760447]
[1732639932948,7.57828528,231.16,231.11,23.776884]
[1732639933242,7.57828528,231.16,231.1,21.55760447]
[1732639934532,20.0,231.13,231.09,22.07378777]
[1732639934731,7.57828528,231.16,231.12,21.55760447]
[1732639935045,7.57828528,231.16,231.15,21.55760447]
[1732639935250,7.57828528,231.16,231.13,21.55760447]
[1732639935625,7.57828528,231.16,231.15,21.55760447]
[1732639937831,4.3224,231.36,231.19,5.0]
[1732639938034,3.20905641,231.35,231.33,21.55760447]
[1732639938229,3.20905641,231.39,231.34,21.55760447]
[1732639938552,3.20905641,231.39,231.35,21.55760447]
[1732639938736,7.53075641,231.39,231.31,21.55760447]
[1732639938926,3.20905641,231.39,231.33,21.55760447]
[1732639939130,25.87880447,231.42,231.33,21.55760447]
[1732639939430,4.3212,231.42,231.35,21.55760447]
[1732639940334,25.87880447,231.42,231.33,21.55760447]
[1732639940548,4.3209,231.44,231.37,21.55760447]
[1732639940749,3.20823734,231.45,231.39,21.55760447]
[1732639941050,7.52843734,231.47,231.39,21.55760447]
[1732639941250,4.3202,231.47,231.39,21.55760447]
[1732639941845,4.3202,231.47,231.41,21.55760447]
[1732639942051,27.85490447,231.54,231.45,21.55760447]
[1732639942247,7.52711487,231.53,231.45,21.55760447]
[1732639942452,4.319,231.53,231.45,21.55760447]
[1732639942834,4.319,231.53,231.47,21.55760447]
[1732639943436,4.319,231.53,231.45,21.55760447]
[1732639943838,4.3183,231.57,231.51,21.55760447]
[1732639944045,7.5245688,231.57,231.51,21.55760447]
[1732639944259,4.3183,231.57,231.51,21.55760447]
[1732639944748,4.3183,231.57,231.49,21.55760447]
[1732639944941,4.3187,231.55,231.47,21.55760447]
[1732639945638,21.55760447,231.54,231.47,21.55760447]
[1732639945838,4.3187,231.55,231.47,21.55760447]
[1732639946195,20.0,231.55,231.49,21.55760447]
[1732639947353,21.55760447,231.54,231.47,21.55760447]
[1732639947852,4.3187,231.55,231.47,21.55760447]
[1732639948359,21.55760447,231.56,231.49,21.55760447]
[1732639948547,25.87620447,231.56,231.49,21.55760447]
[1732639948755,25.87620447,231.56,231.47,21.55760447]
[1732639949835,25.87650447,231.54,231.47,21.55760447]
[1732639950149,4.3189,231.54,231.47,21.55760447]
[1732639950340,25.87620447,231.56,231.49,21.55760447]
[1732639950847,20.0,231.57,231.53,21.55760447]
[1732639951164,7.565784,231.6,231.56,21.55760447]
[1732639951360,7.565784,231.6,231.55,21.55760447]
[1732639951537,7.565784,231.6,231.53,21.55760447]
[1732639951955,33.44118847,231.6,231.53,21.55760447]